bitfinex/quotes_ETHUSD_20250508
["timestamp","ask_amount","ask_price","bid_price","bid_amount"]
[1746709470738,5.08104262,1968.1,1967.9,6.08]
[1746709470739,5.08130081,1968.0,1967.9,9.08]
[1746709471063,5.08130081,1968.0,1967.9,9.34250186]
[1746709471560,5.08116237,1968.1,1967.9,9.34250186]
[1746709472055,5.08130081,1968.0,1967.9,9.34250186]
[1746709472262,5.08130081,1968.0,1967.9,9.08]
[1746709473748,5.08130081,1968.0,1967.9,6.08]
[1746709474385,5.08155902,1967.9,1967.8,4.45804092]
[1746709476486,5.08155902,1967.9,1967.8,4.72061114]
[1746709476986,5.08155902,1967.9,1967.8,4.45804092]
[1746709478675,5.0823338,1967.6,1967.5,7.72333535]
[1746709478858,5.0823338,1967.6,1967.5,4.72333535]
[1746709479087,5.0823338,1967.6,1967.5,4.45804092]
[1746709479295,5.08285046,1967.4,1967.2,5.30017725]
[1746709479586,5.08269663,1967.5,1967.3,3.84213633]
[1746709479791,5.08269663,1967.5,1967.3,4.10454113]
[1746709480453,5.08247857,1967.6,1967.3,4.53858625]
[1746709480655,5.08247857,1967.6,1967.3,4.48775586]
[1746709481155,5.08260696,1967.5,1967.3,4.48775586]
[1746709481351,5.08260696,1967.5,1967.3,6.03763872]
[1746709481555,5.08260696,1967.5,1967.3,5.77523392]
[1746709482688,5.08260696,1967.5,1967.3,5.39201919]
[1746709482894,5.08222071,1967.7,1967.3,10.52587031]
[1746709483095,5.08237525,1967.6,1967.5,4.45804092]
[1746709483392,5.08237525,1967.6,1967.5,5.30017725]
[1746709483710,5.08237525,1967.6,1967.5,4.45804092]
[1746709485605,5.08237525,1967.6,1967.2,5.30017725]
[1746709485606,5.08285046,1967.4,1967.2,5.30017725]
[1746709485815,5.08285046,1967.4,1967.2,3.0]
[1746709485816,5.08310882,1967.3,1967.2,3.0]
[1746709487202,5.08310882,1967.3,1967.2,2.3254603]
[1746709488216,5.08285046,1967.4,1967.2,2.3254603]
[1746709488217,5.08285046,1967.4,1967.2,3.07051329]
[1746709488713,5.08310882,1967.3,1967.2,3.07051329]
[1746709488874,5.08310882,1967.3,1967.2,2.3254603]
[1746709490724,5.89335046,1967.4,1967.2,2.3254603]
[1746709490929,5.08310882,1967.3,1967.2,2.3254603]
[1746709492024,5.08244866,1967.6,1967.2,2.3254603]
[1746709492195,5.08244866,1967.6,1967.5,2.3254603]
[1746709494144,5.08165778,1967.9,1967.6,8.08233228]
[1746709494434,5.08145405,1968.0,1967.8,5.3254603]
[1746709494731,5.08145405,1968.0,1967.9,2.3254603]
[1746709495854,5.08145405,1968.0,1967.8,4.46140888]
[1746709497255,5.08145405,1968.0,1967.8,4.72251238]
[1746709497652,0.8198,1968.2,1967.9,3.0]
[1746709497653,5.08083632,1968.2,1967.9,3.0]
[1746709497860,5.0806595,1968.3,1967.9,8.0815578]
[1746709498358,5.0806595,1968.3,1968.0,0.2611035]
[1746709499060,5.08078542,1968.2,1968.0,0.2611035]
[1746709499230,5.08104262,1968.1,1968.0,0.2611035]
[1746709499672,5.08130081,1968.0,1967.9,3.2611035]
[1746709501074,5.08120647,1968.1,1967.9,3.2611035]
[1746709501940,5.08092504,1968.2,1967.9,3.2611035]
[1746709502138,5.08035387,1968.4,1968.2,3.0]
[1746709502527,5.08035387,1968.4,1968.2,3.2611035]
[1746709503248,5.08052634,1968.3,1968.2,0.2611035]
[1746709503642,5.08205068,1967.8,1967.6,4.46140888]
[1746709503851,5.08114829,1968.1,1967.5,6.08]
[1746709503852,5.08207551,1967.7,1967.5,6.08]
[1746709504053,5.08323306,1967.3,1967.0,7.24233245]
[1746709504268,5.08324672,1967.3,1967.0,2.33270658]
[1746709504468,5.08321095,1967.3,1967.1,3.26132415]
[1746709504666,5.08336722,1967.2,1967.1,0.26132415]
[1746709504869,5.08336722,1967.2,1967.0,0.6403566]
[1746709505040,5.08327676,1967.3,1967.0,3.26132415]
[1746709505238,5.89446554,1967.6,1967.0,3.26132415]
[1746709505474,5.08327355,1967.3,1967.0,3.26132415]
[1746709505640,5.08344964,1967.2,1967.0,0.26132415]
[1746709506160,5.08344964,1967.2,1967.0,3.26132415]
[1746709506349,5.08362564,1967.1,1967.0,3.26132415]
[1746709506551,5.08362564,1967.1,1967.0,0.26132415]
[1746709506746,5.08362564,1967.1,1967.0,3.26132415]
[1746709506961,5.08388408,1967.0,1966.9,4.72273303]
[1746709507148,5.08388408,1967.0,1966.9,0.26132415]
[1746709507357,5.08415996,1966.9,1966.7,1.27181413]
[1746709507669,5.08417536,1966.9,1966.7,3.26132415]
[1746709507871,5.08374773,1967.1,1966.8,1.48544451]
[1746709508037,5.08374773,1967.1,1966.9,4.46140888]
[1746709508567,5.08374773,1967.1,1966.9,4.72273303]
[1746709509078,5.08388408,1967.0,1966.9,7.72273303]
[1746709509757,5.08368277,1967.1,1966.6,6.08]
[1746709509758,5.0846145,1966.8,1966.6,6.08]
[1746709509933,5.08465958,1966.7,1966.6,9.08]
[1746709510165,5.08465958,1966.7,1966.4,4.46140888]
[1746709510501,5.08465958,1966.7,1966.2,11.16580696]
[1746709510502,5.0851767,1966.5,1966.3,0.26090252]
[1746709510721,5.08475251,1966.7,1966.2,0.26090252]
[1746709510867,5.08452957,1966.8,1966.5,3.0]
[1746709511192,5.08475624,1966.7,1966.4,4.46140888]
[1746709511399,5.08496668,1966.6,1966.5,3.0]
[1746709513901,5.08481763,1966.7,1966.5,3.0]
[1746709514072,0.8009,1966.9,1966.3,8.20646187]
[1746709514073,5.08509176,1966.6,1966.3,8.20646187]
[1746709514273,5.08502295,1966.6,1966.3,8.20646187]
[1746709514600,5.88663531,1966.4,1966.3,3.0]
[1746709515177,5.08543531,1966.4,1966.3,3.0]
[1746709515499,5.08523034,1966.5,1966.3,3.0]
[1746709518784,5.08543531,1966.4,1966.3,3.0]
[1746709519492,5.88233531,1966.4,1966.3,3.0]
[1746709520699,0.7969,1966.4,1966.3,3.0]
[1746709521494,5.88233531,1966.4,1966.3,3.0]
[1746709521891,5.08543531,1966.4,1966.3,3.0]
[1746709522383,5.08595259,1966.2,1966.1,4.46140888]
[1746709522606,5.08595259,1966.2,1966.1,7.46140888]
[1746709523700,5.08547396,1966.4,1966.1,4.46140888]
[1746709524208,5.08507605,1966.6,1966.2,3.8314]
[1746709524391,5.0852106,1966.5,1966.2,4.22071361]
[1746709525631,5.08569394,1966.3,1966.2,3.0]
[1746709525783,5.08595259,1966.2,1966.1,6.08]
[1746709526183,5.08595259,1966.2,1966.1,9.08]
[1746709527419,5.08672872,1965.9,1965.7,6.08]
[1746709527593,5.08698748,1965.8,1965.7,9.08]
[1746709527981,5.08689639,1965.9,1965.7,3.0]
[1746709528181,5.08662882,1966.0,1965.7,3.0]
[1746709528414,5.08662882,1966.0,1965.6,5.50366413]
[1746709528415,5.08724627,1965.7,1965.6,8.50366413]
[1746709528593,5.08724627,1965.7,1965.6,4.72686413]
[1746709528923,5.88804627,1965.7,1965.6,0.26545525]
[1746709529292,5.08760188,1965.6,1965.4,3.25401818]
[1746709530187,5.08760188,1965.6,1965.4,0.25401818]
[1746709530404,5.08760188,1965.6,1965.3,4.46140888]
[1746709530606,5.08739059,1965.7,1965.4,3.0]
[1746709530807,5.08755572,1965.6,1965.4,3.0]
[1746709531000,5.08712852,1965.8,1965.4,8.39951167]
[1746709531205,5.08712852,1965.8,1965.5,0.7577]
[1746709531722,5.08712852,1965.8,1965.6,0.30790175]
[1746709532124,5.08690467,1965.9,1965.6,7.76931063]
[1746709532508,6.2967,1966.3,1965.7,3.0]
[1746709532727,5.08636369,1966.1,1965.7,14.21805706]
[1746709532913,5.08636369,1966.1,1965.8,0.29868751]
[1746709533810,5.08636369,1966.1,1966.0,3.0]
[1746709534133,0.7565,1966.5,1966.0,3.29770962]
[1746709534314,5.08572016,1966.3,1966.0,9.74398673]
[1746709534623,5.08572016,1966.3,1966.0,4.65752964]
[1746709534804,5.0855923,1966.4,1966.0,4.65752964]
[1746709535004,5.08574303,1966.3,1966.0,4.65752964]
[1746709535220,5.08574303,1966.3,1966.1,0.46575296]
[1746709535421,5.08574303,1966.3,1966.2,0.29673192]
[1746709535629,5.08560922,1966.4,1966.1,0.46575296]
[1746709535832,5.9087828,1966.7,1966.3,3.0]
[1746709536137,5.08486263,1966.7,1966.5,4.46140888]
[1746709536440,5.08453385,1966.8,1966.6,0.29477713]
[1746709536808,5.08465958,1966.7,1966.6,0.29477713]
[1746709538741,5.08429221,1966.9,1966.6,3.29477713]
[1746709538941,5.08429221,1966.9,1966.7,0.8231]
[1746709539153,5.08367525,1967.1,1966.7,0.8231]
[1746709539308,5.08337442,1967.2,1966.9,3.0]
[1746709539513,5.08337442,1967.2,1966.9,3.26112939]
[1746709539714,5.08337442,1967.2,1967.0,0.29006318]
[1746709540145,5.08310953,1967.3,1967.1,3.0]
[1746709540452,5.91510431,1967.5,1967.2,3.28908648]
[1746709540818,18.316,1967.7,1967.3,5.08303633]
[1746709540819,5.0821802,1967.7,1967.3,5.08303633]
[1746709541019,5.0821802,1967.7,1967.5,3.0]
[1746709541215,5.0823338,1967.6,1967.5,3.0]
[1746709541649,5.08277002,1967.5,1967.3,3.0]
[1746709541816,5.08277002,1967.5,1967.3,3.26064398]
[1746709542458,5.08248032,1967.6,1967.3,4.4060484]
[1746709542656,5.08221209,1967.7,1967.4,0.8086]
[1746709543426,5.08115694,1968.1,1967.5,7.51223251]
[1746709543624,5.08118249,1968.1,1967.9,3.0]
[1746709543841,5.08090038,1968.2,1967.9,3.0]
[1746709544031,5.07998107,1968.6,1968.2,3.0]
[1746709544032,5.08047885,1968.4,1968.2,3.0]
[1746709544229,5.08052634,1968.3,1968.2,3.0]
[1746709544430,5.08052634,1968.3,1968.2,3.28044937]
[1746709545564,5.07990385,1968.6,1968.2,4.04794937]
[1746709545923,5.07990385,1968.6,1968.2,9.17941822]
[1746709546123,5.07990385,1968.6,1968.2,11.65958069]
[1746709546359,5.07990385,1968.6,1968.2,11.60877844]
[1746709547171,5.07934598,1968.8,1968.5,3.0]
[1746709547337,5.08032997,1968.4,1968.3,3.0]
[1746709547677,5.08069377,1968.3,1968.0,3.0]
[1746709547880,5.08069377,1968.3,1968.0,4.93903774]
[1746709548081,5.08080464,1968.2,1968.0,3.0]
[1746709548673,5.08104262,1968.1,1968.0,3.0]
[1746709548871,5.08104262,1968.1,1967.9,10.54140888]
[1746709549094,5.08191086,1967.8,1967.4,6.08]
[1746709549241,5.08259212,1967.5,1967.3,4.46140888]
[1746709549448,5.08259212,1967.5,1967.4,3.0]
[1746709549646,5.08238795,1967.6,1967.4,3.0]
[1746709549869,10.16448661,1967.7,1967.3,3.0]
[1746709550073,4.74271536,1969.0,1967.5,3.0]
[1746709550074,5.08167825,1967.9,1967.5,3.0]
[1746709550283,5.08167825,1967.9,1967.5,3.82951977]
[1746709550284,5.08190697,1967.8,1967.5,3.82951977]
[1746709550654,5.08167825,1967.9,1967.5,8.91208587]
[1746709551080,5.08185946,1967.8,1967.5,3.82951977]
[1746709551277,5.08226139,1967.7,1967.5,3.7787]
[1746709551890,5.08181735,1967.8,1967.5,10.00341275]
[1746709552455,5.08181735,1967.8,1967.5,4.92084154]
[1746709552859,5.08166688,1967.9,1967.5,8.86115744]
[1746709553260,5.08079634,1968.2,1967.5,3.7787]
[1746709553465,5.08192053,1967.8,1967.5,3.7787]
[1746709554067,5.081777,1967.9,1967.5,3.7787]
[1746709554267,5.08184711,1967.8,1967.5,3.7787]
[1746709555164,5.08175842,1967.9,1967.5,10.51170095]
[1746709555898,5.08196393,1967.8,1967.5,5.42911729]
[1746709556197,0.8149,1967.9,1967.5,3.0]
[1746709556699,0.8149,1967.9,1967.4,2.9]
[1746709556999,5.08352274,1967.2,1967.0,0.7749]
[1746709557297,5.08349726,1967.2,1967.0,0.7749]
[1746709557489,5.08349726,1967.2,1967.0,0.58590239]
[1746709557490,5.08379757,1967.1,1967.0,0.58590239]
[1746709557684,5.08379757,1967.1,1966.8,0.7749]
[1746709557900,5.08379757,1967.1,1966.8,4.14783175]
[1746709558093,5.08379757,1967.1,1966.8,1.14783175]
[1746709558094,5.08404411,1967.0,1966.8,1.14783175]
[1746709558297,5.08414255,1966.9,1966.8,0.37293175]
[1746709558598,5.08414255,1966.9,1966.6,3.7926]
[1746709558766,5.08414255,1966.9,1966.6,2.18886938]
[1746709558961,5.08465958,1966.7,1966.6,1.39626938]
[1746709559173,5.08465958,1966.7,1966.5,6.08]
[1746709559379,5.08456583,1966.8,1966.5,6.08]
[1746709559566,5.08456583,1966.8,1966.6,3.28677674]
[1746709559760,5.08456583,1966.8,1966.6,0.28677674]
[1746709559959,5.08465958,1966.7,1966.6,0.28677674]
[1746709560170,5.08465958,1966.7,1966.6,3.28677674]
[1746709560377,5.08429043,1966.9,1966.6,3.28677674]
[1746709560573,5.08429043,1966.9,1966.6,4.22345441]
[1746709561112,5.08398351,1967.0,1966.6,4.22345441]
[1746709561322,5.08374624,1967.1,1966.8,3.0]
[1746709561675,5.08388408,1967.0,1966.9,0.28531143]
[1746709562007,5.08388408,1967.0,1966.8,3.0]
[1746709562305,5.0838156,1967.1,1966.9,0.28531143]
[1746709562513,5.0838156,1967.1,1966.8,3.0]
[1746709562809,5.08260128,1967.5,1967.1,8.08353541]
[1746709563015,5.08260128,1967.5,1967.2,0.7837]
[1746709563214,5.0822197,1967.7,1967.2,6.20151388]
[1746709563381,5.0822197,1967.7,1967.2,6.20157064]
[1746709563581,5.08243455,1967.6,1967.3,0.62015706]
[1746709563975,5.08259212,1967.5,1967.4,0.28267692]
[1746709564190,5.463,1968.0,1967.4,0.28267692]
[1746709564396,5.08154843,1968.0,1967.4,8.36541995]
[1746709564592,5.08154843,1968.0,1967.6,8.08228834]
[1746709564593,5.08148487,1968.0,1967.6,8.08228834]
[1746709564919,5.08037861,1968.4,1967.8,3.0]
[1746709565073,5.08050022,1968.4,1968.0,8.08129432]
[1746709565288,5.08050022,1968.4,1968.1,0.27935805]
[1746709565493,10.54279332,1968.6,1968.1,0.27935805]
[1746709565725,5.08048391,1968.4,1968.1,0.27935805]
[1746709566092,5.08016764,1968.5,1968.1,0.27935805]
[1746709566093,5.08015495,1968.5,1968.1,0.27935805]
[1746709566524,5.08065807,1968.3,1968.1,0.27935805]
[1746709566730,10.54277376,1968.6,1968.1,0.27935805]
[1746709566928,5.08078447,1968.2,1968.1,0.27935805]
[1746709567738,5.08106853,1968.1,1967.9,3.0]
[1746709567915,5.08130081,1968.0,1967.9,3.0]
[1746709568123,5.08073198,1968.3,1967.9,0.908]
[1746709568325,5.0808088,1968.2,1967.8,8.08163894]
[1746709568493,5.08105046,1968.1,1967.8,3.0]
[1746709568694,5.0808088,1968.2,1967.8,3.26039717]
[1746709569032,5.08087815,1968.2,1967.8,8.72956965]
[1746709569231,5.08115642,1968.1,1967.8,3.6477952]
[1746709569429,5.08132048,1968.0,1967.8,3.6477952]
[1746709569628,5.08125182,1968.1,1967.8,3.26039717]
[1746709569931,0.8006,1968.3,1967.8,9.78445324]
[1746709569932,5.08092818,1968.2,1967.8,9.78445324]
[1746709570117,5.08092818,1968.2,1967.9,1.0]
[1746709570709,5.08092818,1968.2,1967.9,1.26047697]
[1746709571932,5.08106935,1968.1,1967.9,1.26047697]
[1746709572429,5.08063963,1968.3,1967.9,1.26047697]
[1746709572430,5.08092312,1968.2,1967.9,1.26047697]
[1746709574131,10.16192857,1968.2,1967.9,1.26047697]
[1746709574423,5.08092312,1968.2,1967.9,1.26047697]
[1746709574626,10.16192293,1968.2,1968.0,0.2782622]
[1746709574925,5.08104262,1968.1,1968.0,0.2782622]
[1746709575425,5.85264262,1968.1,1968.0,0.2782622]
[1746709575994,5.08130081,1968.0,1967.9,1.0]
[1746709576224,5.08155902,1967.9,1967.5,3.64381672]
[1746709576430,5.08184491,1967.8,1967.5,5.12447339]
[1746709576830,5.0821062,1967.7,1967.5,5.12447339]
[1746709577033,5.0821062,1967.7,1967.5,4.74123028]
[1746709577227,5.08198113,1967.8,1967.5,4.74123028]
[1746709577744,11.31464262,1968.1,1967.5,4.74123028]
[1746709577745,5.0823338,1967.6,1967.5,1.74123028]
[1746709577902,5.0823338,1967.6,1967.5,0.26057361]
[1746709578416,5.0823338,1967.6,1967.5,3.26057361]
[1746709579444,5.0823338,1967.6,1967.5,0.26057361]
[1746709579624,5.08264059,1967.5,1967.3,0.26057361]
[1746709580845,5.08213072,1967.7,1967.3,6.20513065]
[1746709581035,5.0819252,1967.8,1967.6,3.0]
[1746709581346,5.85279959,1968.1,1967.6,3.05082236]
[1746709581642,5.0813505,1968.0,1967.6,8.39378619]
[1746709581830,5.0813505,1968.0,1967.7,0.83937862]
[1746709582339,5.08178853,1967.9,1967.7,1.10013402]
[1746709582640,5.08178853,1967.9,1967.6,3.2607554]
[1746709582855,5.08178327,1967.9,1967.6,3.2607554]
[1746709583055,5.08195462,1967.8,1967.6,3.2607554]
[1746709583838,5.0814234,1968.0,1967.6,3.2607554]
[1746709584056,5.0814234,1968.0,1967.7,0.32607554]
[1746709584349,5.0814234,1968.0,1967.7,0.58683094]
[1746709584514,5.08156869,1967.9,1967.7,0.58683094]
[1746709584715,5.08181725,1967.8,1967.7,0.2607554]
[1746709585124,5.08181725,1967.8,1967.5,4.0285554]
[1746709585347,0.762,1968.1,1967.5,6.3407554]
[1746709585655,5.0823338,1967.6,1967.5,6.08]
[1746709585872,10.16560195,1967.5,1967.2,7.26720514]
[1746709586025,5.08247118,1967.6,1967.2,8.50227125]
[1746709586227,5.08247118,1967.6,1967.3,5.08306009]
[1746709586458,5.08247118,1967.6,1967.3,3.0]
[1746709586960,5.08247118,1967.6,1967.3,3.25246209]
[1746709588070,5.08277173,1967.5,1967.3,0.25246209]
[1746709588243,5.08285046,1967.4,1967.3,0.25246209]
[1746709589067,5.08362564,1967.1,1967.0,9.08]
[1746709589237,5.08362564,1967.1,1967.0,3.25274225]
[1746709589429,5.08362564,1967.1,1967.0,3.53661154]
[1746709589764,5.08362564,1967.1,1967.0,3.28386929]
[1746709595771,5.08362564,1967.1,1967.0,0.28386929]
[1746709595976,6.41882564,1967.1,1967.0,0.28386929]
[1746709596287,6.41882564,1967.1,1965.8,5.462]
[1746709596288,0.7852,1966.5,1965.9,0.25274225]
[1746709596432,5.08646998,1966.0,1965.9,0.25274225]
[1746709596631,5.08646998,1966.0,1965.7,5.68419063]
[1746709596869,5.08646998,1966.0,1965.7,7.3126491]
[1746709597173,5.08651986,1966.0,1965.7,7.3126491]
[1746709597373,5.08651986,1966.0,1965.8,3.0]
[1746709597671,5.08663001,1966.0,1965.7,4.8899176]
[1746709597871,5.08641061,1966.1,1965.7,9.97706937]
[1746709598074,5.0860449,1966.2,1965.8,6.08460567]
[1746709598373,5.0860449,1966.2,1965.9,3.0]
[1746709598552,5.08623419,1966.1,1965.8,4.04857489]
[1746709598875,5.08623419,1966.1,1965.8,3.0]
[1746709599061,5.08607456,1966.2,1965.8,8.0868904]
[1746709600042,10.17224555,1966.2,1965.8,8.0868904]
[1746709600266,5.08607456,1966.2,1965.8,8.0868904]
[1746709600673,10.17226396,1966.2,1965.8,8.0868904]
[1746709600840,10.17226887,1966.2,1965.8,8.0868904]
[1746709601184,5.08607456,1966.2,1965.8,8.0868904]
[1746709601381,5.08607456,1966.2,1965.8,14.68516269]
[1746709601560,5.08585395,1966.3,1965.9,8.83802259]
[1746709601759,5.08608806,1966.2,1965.9,3.7515]
[1746709602584,5.08585395,1966.3,1966.0,0.05086507]
[1746709602585,5.08582078,1966.3,1966.0,0.05086507]
[1746709602884,5.0860391,1966.2,1966.0,3.0]
[1746709603082,10.17223281,1966.2,1966.0,3.0]
[1746709603389,5.0860391,1966.2,1966.0,3.0]
[1746709603761,5.08581837,1966.3,1966.0,3.0]
[1746709604084,5.08581837,1966.3,1966.1,0.26698498]
[1746709604474,5.08595259,1966.2,1966.1,0.26698498]
[1746709604843,5.08646998,1966.0,1965.7,4.40570137]
[1746709605049,5.08638341,1966.1,1965.7,9.49293446]
[1746709605369,5.08613453,1966.2,1965.8,8.08682071]
[1746709605568,10.17231469,1966.2,1965.8,8.08682071]
[1746709605746,5.08613453,1966.2,1966.0,4.46944223]
[1746709606247,5.08613453,1966.2,1966.0,7.46944223]
[1746709606248,5.08621128,1966.1,1966.0,7.46944223]
[1746709608003,5.08621128,1966.1,1966.0,3.0]
[1746709608298,5.08621128,1966.1,1965.4,0.55]
[1746709608299,5.08758417,1965.6,1965.4,4.46944223]
[1746709608650,5.08758417,1965.6,1965.5,3.0]
[1746709609484,5.08715157,1965.8,1965.5,3.0]
[1746709610870,5.08750508,1965.6,1965.5,3.0]
[1746709611079,5.08776392,1965.5,1965.4,4.46944223]
[1746709611256,5.08802279,1965.4,1965.1,0.7856]
[1746709611456,5.08832183,1965.3,1965.1,1.15894977]
[1746709611671,5.08832183,1965.3,1965.1,4.15894977]
[1746709611873,5.08822348,1965.4,1965.1,4.15894977]
[1746709612376,5.08839452,1965.3,1965.1,4.41839666]
[1746709612773,0.7505,1965.7,1965.1,4.41839666]
[1746709612958,5.08787775,1965.5,1965.3,4.46944223]
[1746709613384,5.08738439,1965.7,1965.3,4.46944223]
[1746709613591,5.08765678,1965.6,1965.3,4.46944223]
[1746709615749,5.08765678,1965.6,1965.1,7.40089291]
[1746709615750,5.08843832,1965.3,1965.1,1.41839666]
[1746709615949,5.08724627,1965.7,1965.0,4.46944223]
[1746709615950,5.85282372,1965.5,1965.0,4.46944223]
[1746709616191,5.08868477,1965.2,1965.0,4.46944223]
[1746709616495,0.765,1965.5,1965.1,3.0]
[1746709616650,5.0885406,1965.2,1965.1,3.0]
[1746709617086,5.08816532,1965.4,1965.1,3.0]
[1746709617495,5.08840012,1965.3,1965.1,3.0]
[1746709619395,5.08840012,1965.3,1965.2,0.2736126]
[1746709619686,5.08814388,1965.4,1965.2,0.2736126]
[1746709619888,5.08828168,1965.3,1965.2,0.2736126]
[1746709620092,5.08824172,1965.4,1965.2,0.2736126]
[1746709620397,5.08828168,1965.3,1965.2,0.2736126]
[1746709621206,5.08767124,1965.6,1965.3,0.7933]
[1746709621409,5.463,1965.8,1965.4,3.0]
[1746709621410,5.0873913,1965.7,1965.4,3.0]
[1746709621610,5.0873913,1965.7,1965.4,3.27263434]
[1746709621904,5.08743402,1965.7,1965.4,3.27263434]
[1746709622264,5.08770805,1965.6,1965.4,3.27263434]
[1746709622456,5.0874237,1965.7,1965.4,3.27263434]
[1746709623214,11.37823155,1966.0,1965.6,4.46944223]
[1746709623215,0.8287,1966.0,1965.6,4.46944223]
[1746709623383,5.08640029,1966.1,1965.7,3.83107178]
[1746709623574,5.08640029,1966.1,1965.8,0.27048487]
[1746709624711,5.0866949,1966.0,1965.8,0.27048487]
[1746709625005,5.08672872,1965.9,1965.8,0.27048487]
[1746709625213,5.08666518,1966.0,1965.8,0.27048487]
[1746709626532,0.8304,1966.5,1965.9,4.46944223]
[1746709626713,5.08560985,1966.4,1966.3,3.0]
[1746709626914,0.7907,1966.9,1966.2,5.28714223]
[1746709627119,5.08477983,1966.7,1966.5,4.46944223]
[1746709627287,5.08477983,1966.7,1966.6,3.0]
[1746709627487,5.08477983,1966.7,1966.6,3.26754209]
[1746709628012,5.08435236,1966.9,1966.6,4.06294209]
[1746709628380,10.16875281,1966.9,1966.6,4.06294209]
[1746709628714,5.08450233,1966.8,1966.6,4.06294209]
[1746709628918,11.34515839,1967.1,1966.6,4.06294209]
[1746709629280,5.08460724,1966.8,1966.6,4.06294209]
[1746709629594,5.08465958,1966.7,1966.6,3.26754209]
[1746709630346,5.08457212,1966.8,1966.6,3.26754209]
[1746709630547,5.08404747,1967.0,1966.6,4.04124052]
[1746709630745,5.08378925,1967.1,1966.9,3.0]
[1746709630919,5.08378925,1967.1,1967.0,0.26317061]
[1746709635447,5.08426024,1966.9,1966.7,0.38731122]
[1746709635622,5.08440105,1966.8,1966.6,3.7924]
[1746709635816,5.08465958,1966.7,1966.3,0.8139]
[1746709636015,5.08632656,1966.1,1965.9,5.28334223]
[1746709636244,5.0860835,1966.2,1965.9,5.8521833]
[1746709636469,5.08543531,1966.4,1966.0,3.0]
[1746709636760,5.08573792,1966.3,1966.0,0.05086285]
[1746709636922,5.08560477,1966.4,1966.0,3.0]
[1746709637117,5.08529234,1966.5,1966.1,5.08620746]
[1746709637323,5.08500934,1966.6,1966.3,0.7798]
[1746709637520,5.08500934,1966.6,1966.3,3.7798]
[1746709638035,5.0851993,1966.5,1966.3,0.7798]
[1746709638242,5.08507595,1966.6,1966.3,0.7798]
[1746709638441,5.08543531,1966.4,1966.3,0.7798]
[1746709638624,5.08466654,1966.7,1966.1,3.765]
[1746709638957,5.08570298,1966.3,1966.1,0.765]
[1746709639127,5.08559302,1966.4,1966.1,0.765]
[1746709640114,11.31778155,1966.9,1966.2,5.08583362]
[1746709640315,5.08506784,1966.6,1966.3,3.05085118]
[1746709640654,5.86958925,1966.5,1965.9,1.76240591]
[1746709640856,5.08615138,1966.2,1965.9,4.81326744]
[1746709641156,5.08586881,1966.3,1965.9,9.89999095]
[1746709642842,5.08535237,1966.5,1966.0,3.98999909]
[1746709643022,5.08556638,1966.4,1966.1,0.05085498]
[1746709643220,5.08578376,1966.3,1966.0,3.98999909]
[1746709643422,5.08578376,1966.3,1966.0,3.0]
[1746709644777,5.08556638,1966.4,1966.0,3.0]
[1746709644778,5.08547925,1966.4,1966.0,3.0]
[1746709644932,5.08531523,1966.5,1966.2,3.0]
[1746709645256,5.08503684,1966.6,1966.3,0.83935503]
[1746709645257,5.08505651,1966.6,1966.3,0.83935503]
[1746709645855,5.08505651,1966.6,1966.3,5.92503803]
[1746709646058,5.08505651,1966.6,1966.3,2.24043494]
[1746709646254,5.08485599,1966.7,1966.3,7.32612093]
[1746709646458,5.08492696,1966.6,1966.3,7.32612093]
[1746709646658,5.08517824,1966.5,1966.3,2.18957991]
[1746709646883,5.08517824,1966.5,1966.3,0.7885]
[1746709647793,5.08543531,1966.4,1966.2,3.0]
[1746709648615,5.08522313,1966.5,1966.2,3.0]
[1746709649475,5.08543531,1966.4,1966.3,0.26625897]
[1746709649682,5.08537553,1966.5,1966.3,0.26625897]
[1746709649875,11.32853531,1966.4,1966.3,0.26625897]
[1746709650291,5.08689331,1965.9,1965.5,0.26537304]
[1746709650493,5.08711742,1965.8,1965.5,7.46640486]
[1746709650807,5.08711742,1965.8,1965.6,3.26968076]
[1746709651608,5.08711742,1965.8,1965.6,3.65547199]
[1746709652508,5.08724627,1965.7,1965.6,3.26968076]
[1746709655821,0.752,1966.0,1965.6,3.26968076]
[1746709656137,5.08675045,1965.9,1965.7,0.32696808]
[1746709656322,5.08675045,1965.9,1965.6,3.26968076]
[1746709656667,5.08675045,1965.9,1965.7,0.26927847]
[1746709657113,5.08675045,1965.9,1965.6,3.05086749]
[1746709657288,5.08675045,1965.9,1965.8,0.26878955]
[1746709657810,5.08675045,1965.9,1965.6,3.05086749]
[1746709657993,5.08675045,1965.9,1965.7,0.26927847]
[1746709658183,5.08675045,1965.9,1965.6,4.50245281]
[1746709658383,5.08675045,1965.9,1965.7,0.26927847]
[1746709658585,5.08675045,1965.9,1965.6,9.58994708]
[1746709658817,5.08675045,1965.9,1965.7,0.26927847]
[1746709659025,5.08675045,1965.9,1965.6,4.50245281]
[1746709659201,5.08700387,1965.8,1965.7,0.26927847]
[1746709659401,5.08700387,1965.8,1965.6,3.0]
[1746709659629,5.08724627,1965.7,1965.6,3.0]
[1746709659995,5.08791243,1965.5,1965.3,10.55256402]
[1746709660190,5.08791243,1965.5,1965.4,3.0]
[1746709660391,5.08766476,1965.6,1965.4,3.0]
[1746709660591,5.08713287,1965.8,1965.4,9.49397316]
[1746709660836,5.08713287,1965.8,1965.7,3.0]
[1746709662133,5.08688722,1965.9,1965.7,3.0]
[1746709662335,10.17386397,1965.9,1965.7,3.0]
[1746709662696,5.08688722,1965.9,1965.7,3.0]
[1746709662906,5.08698748,1965.8,1965.7,3.0]
[1746709663442,5.0869043,1965.9,1965.7,3.0]
[1746709663811,5.08698748,1965.8,1965.7,3.0]
[1746709664421,5.0869043,1965.9,1965.7,3.0]
[1746709664422,0.8328,1966.1,1965.7,3.26889444]
[1746709664634,5.84836545,1966.4,1966.0,3.0]
[1746709664799,5.08579277,1966.3,1966.1,0.2668426]
[1746709665203,5.84838945,1966.4,1966.1,0.2668426]
[1746709665533,5.08543531,1966.4,1966.3,3.0]
[1746709665922,5.08543531,1966.4,1966.3,3.26644568]
[1746709668324,0.7812,1967.2,1966.4,0.7559]
[1746709668524,0.7812,1967.2,1966.9,4.47256402]
[1746709668714,0.7812,1967.2,1967.0,3.0]
[1746709668921,0.7812,1967.2,1967.0,3.26351011]
[1746709670308,0.7812,1967.2,1967.0,0.26351011]
[1746709670639,0.7812,1967.2,1966.8,3.0]
[1746709670815,0.7812,1967.2,1966.9,0.26419185]
[1746709671140,0.7812,1967.2,1966.8,3.25266264]
[1746709671305,0.7812,1967.2,1967.0,0.26370354]
[1746709671641,0.7812,1967.2,1967.1,0.26321528]
[1746709671850,0.7812,1967.2,1966.8,3.0]
[1746709672043,0.7812,1967.2,1966.9,0.26419185]